bitfinex-derivatives/quotes_ETHF0:USTF0_20251103
["timestamp","ask_amount","ask_price","bid_price","bid_amount"]
[1762184873734,3.2078,3594.4,3594.0,7.4e-07]
[1762184874030,3.2078,3594.9,3594.0,7.4e-07]
[1762184874234,3.2078,3594.5,3594.0,7.4e-07]
[1762184874439,4.2945,3595.0,3594.0,7.4e-07]
[1762184874645,3.2078,3594.6,3594.0,7.4e-07]
[1762184875537,3.2078,3595.2,3594.3,3.2078]
[1762184875831,1.0867,3595.9,3594.3,3.2078]
[1762184875832,3.2078,3595.6,3594.3,5.19297945]
[1762184876040,3.2078,3595.6,3594.7,3.2078]
[1762184876834,3.2078,3595.2,3594.7,3.2078]
[1762184877133,3.2078,3595.2,3594.1,1.98517945]
[1762184877338,3.2078,3595.2,3594.0,5.19298019]
[1762184877731,1.0867,3595.9,3594.0,3.20780074]
[1762184877732,3.2078,3594.8,3594.0,3.20780074]
[1762184878434,1.0867,3595.0,3594.1,3.2078]
[1762184878641,3.2078,3595.3,3594.1,3.2078]
[1762184878939,3.2078,3595.3,3594.1,5.19297945]
[1762184879239,0.50092,3594.3,3594.1,3.2078]
[1762184879835,3.2078,3595.3,3594.1,3.2078]
[1762184880133,3.2078,3595.3,3595.2,0.99682143]
[1762184880329,3.2078,3595.3,3595.0,0.99682143]
[1762184880537,3.2078,3595.7,3595.0,0.99682143]
[1762184880729,3.2078,3595.7,3595.1,1.98517945]
[1762184880932,3.2078,3595.7,3594.0,4.26507734]
[1762184880933,10.1606,3595.7,3595.2,2.598e-05]
[1762184881133,1.0867,3596.0,3594.0,7.4e-07]
[1762184881134,1.0867,3595.0,3594.0,7.4e-07]
[1762184881337,3.2078,3594.7,3594.0,7.4e-07]
[1762184881936,1.0867,3595.0,3594.0,7.4e-07]
[1762184881937,3.2078,3594.2,3594.0,7.4e-07]
[1762184882540,1.0867,3595.0,3594.0,7.4e-07]
[1762184882741,3.2078,3594.3,3594.0,7.4e-07]
[1762184883038,3.2078,3594.7,3594.0,7.4e-07]
[1762184883835,3.2078,3595.5,3594.4,1.98517945]
[1762184884038,3.2078,3596.0,3595.2,3.2078]
[1762184884241,3.2078,3596.0,3594.8,1.98517945]
[1762184884435,3.2078,3595.6,3594.7,1.98517945]
[1762184884630,3.2078,3595.6,3594.4,5.19297945]
[1762184884836,3.2078,3595.6,3594.8,3.2078]
[1762184885141,3.2078,3595.6,3594.8,5.19297945]
[1762184885333,3.2078,3595.6,3594.8,3.2078]
[1762184885531,1.0867,3596.0,3595.2,3.2078]
[1762184885729,0.00195417,3596.1,3595.6,3.2078]
[1762184885935,0.00195417,3596.1,3596.0,3.2078]
[1762184886333,3.20975417,3596.1,3595.1,3.25973699]
[1762184886633,3.2078,3595.7,3594.8,1.98517945]
[1762184886829,1.0867,3596.0,3594.6,5.19297945]
[1762184887030,1.0867,3596.0,3594.6,3.2078]
[1762184887031,3.2078,3595.8,3594.6,3.2078]
[1762184887231,3.2078,3595.4,3594.6,3.2078]
[1762184887636,3.2078,3595.9,3595.0,3.2078]
[1762184887940,0.00195417,3596.1,3595.2,5.19297945]
[1762184888136,0.00195417,3596.1,3595.2,3.2078]
[1762184888339,0.00195417,3596.1,3594.6,2.47191761]
[1762184888340,3.2078,3595.8,3594.9,1.98517945]
[1762184888533,3.2078,3595.8,3594.7,5.19297945]
[1762184888736,3.2078,3595.8,3594.7,3.2078]
[1762184889040,3.2078,3595.0,3594.3,1.98517945]
[1762184889230,3.2078,3595.5,3594.3,1.98517945]
[1762184889437,3.2078,3595.5,3594.5,3.2078]
[1762184890436,3.2078,3595.9,3595.1,3.2078]
[1762184890640,0.00195417,3596.1,3595.5,3.2078]
[1762184890841,1e-08,3596.1,3596.0,3.2078]
[1762184891437,1e-08,3596.1,3595.6,1.98517945]
[1762184891635,1e-08,3596.1,3595.2,3.2078]
[1762184891838,3.2078,3596.0,3595.2,5.19297945]
[1762184892039,4.2945,3596.0,3595.2,3.2078]
[1762184892234,3.2078,3595.5,3594.2,3.2078]
[1762184892442,1.0867,3595.0,3594.0,1.98518019]
[1762184892746,3.2078,3595.2,3594.2,3.2078]
[1762184892941,1.0867,3596.0,3594.2,1.98517945]
[1762184892942,3.2078,3595.9,3594.2,1.98517945]
[1762184893251,3.2078,3595.4,3594.2,3.2078]
[1762184893742,3.2078,3595.8,3594.6,3.2078]
[1762184893941,1.0867,3596.0,3594.6,3.2078]
[1762184893942,3.2078,3595.4,3594.6,3.2078]
[1762184894840,3.2078,3595.8,3594.6,3.2078]
[1762184895045,3.2078,3595.8,3595.0,3.2078]
[1762184896146,0.50082,3595.0,3594.9,1.49461604]
[1762184896450,0.50086,3594.7,3594.6,1.49461604]
[1762184896643,3.2078,3595.7,3594.3,5.19297945]
[1762184896839,3.2078,3595.7,3595.0,1.49537631]
[1762184897036,3.2078,3595.7,3595.2,1.49537631]
[1762184897345,3.2078,3595.7,3595.1,1.49537631]
[1762184897842,3.2078,3595.7,3595.0,1.49537631]
[1762184898042,3.2078,3595.2,3594.5,1.49537631]
[1762184898236,3.2078,3595.6,3594.9,3.2078]
[1762184898441,3.2078,3596.5,3595.4,5.19297945]
[1762184898646,3.2078,3596.5,3595.9,1.49498354]
[1762184898844,3.2078,3596.5,3595.4,3.2078]
[1762184898845,3.2078,3596.5,3595.8,1.49498354]
[1762184899040,3.20780001,3596.1,3595.7,1.49498354]
[1762184899242,1e-08,3596.1,3595.7,3.2078]
[1762184899444,1e-08,3596.1,3595.9,1.49498354]
[1762184900052,1e-08,3596.1,3595.8,1.49498354]
[1762184900548,1e-08,3596.1,3595.7,1.49498354]
[1762184900744,1e-08,3596.1,3595.7,3.2078]
[1762184900937,1e-08,3596.1,3595.8,1.49498354]
[1762184901139,3.2078,3596.0,3595.5,1.49498354]
[1762184901449,1e-08,3596.1,3595.5,1.49498354]
[1762184901650,3.2078,3595.6,3595.4,1.49498354]
[1762184901847,3.2078,3595.6,3595.3,1.49498354]
[1762184902147,3.2078,3595.6,3594.8,1.49498354]
[1762184902348,4.2392,3596.0,3595.1,1.49498354]
[1762184902551,1e-08,3596.1,3595.4,3.2078]
[1762184902749,1e-08,3596.1,3595.3,1.49498354]
[1762184902750,1e-08,3596.1,3595.6,1.49498354]
[1762184902947,1e-08,3596.1,3595.9,1.49498354]
[1762184903148,1e-08,3596.1,3595.6,1.49498354]
[1762184903342,1e-08,3596.1,3595.7,3.2078]
[1762184903547,3.2078,3596.0,3595.5,1.49498354]
[1762184903849,3.2078,3595.6,3595.3,1.49498354]
[1762184904046,3.2078,3595.6,3594.8,1.49498354]
[1762184904246,3.2078,3595.6,3594.8,1.506664]
[1762184904447,0.5008,3595.1,3595.0,1.49498354]
[1762184904653,0.5008,3595.1,3594.9,1.49498354]
[1762184904846,3.2078,3595.6,3594.7,1.49498354]
[1762184905046,3.2078,3595.6,3594.8,1.49498354]
[1762184905247,3.2078,3595.6,3594.9,1.49498354]
[1762184905441,3.2078,3595.6,3595.1,3.2078]
[1762184905646,3.2078,3595.2,3594.9,1.49498354]
[1762184905846,3.2078,3595.2,3594.8,1.49498354]
[1762184906049,3.2078,3595.2,3594.7,1.49498354]
[1762184906643,3.2078,3595.6,3594.9,1.49498354]
[1762184906849,3.2078,3595.6,3595.2,1.49498354]
[1762184907345,3.2078,3596.4,3595.3,2.84688407]
[1762184907543,3.2078,3596.4,3595.7,1.49498354]
[1762184907945,3.2078,3596.4,3595.8,1.49498354]
[1762184908146,3.2078,3596.4,3595.8,1.29395595]
[1762184908347,3.2078,3596.4,3596.0,1.49498354]
[1762184908748,3.2078,3596.4,3595.5,1.98517945]
[1762184908749,3.2078,3596.4,3595.8,1.49498354]
[1762184909145,3.2078,3596.4,3595.7,1.49498354]
[1762184909351,3.2078,3596.4,3595.2,1.98517945]
[1762184909352,3.2078,3596.4,3595.6,1.49498354]
[1762184909654,3.2078,3596.0,3595.3,1.49498354]
[1762184909956,3.2078,3596.0,3595.2,1.49498354]
[1762184909957,3.2078,3595.6,3595.2,1.49498354]
[1762184910153,3.2078,3595.6,3594.7,1.98517945]
[1762184910154,3.2078,3595.6,3594.7,1.49498354]
[1762184910350,3.2078,3594.8,3594.2,1.49498354]
[1762184910658,3.2078,3594.8,3594.3,1.49498354]
[1762184910849,3.2078,3594.8,3594.2,1.49498354]
[1762184911253,3.2078,3594.8,3594.1,1.49498354]
[1762184911454,3.2078,3595.2,3594.2,1.49498354]
[1762184911653,3.2078,3594.8,3594.2,1.49498354]
[1762184912166,3.2078,3594.8,3594.3,1.49498354]
[1762184912557,0.968,3596.0,3594.3,1.49498354]
[1762184912558,3.2078,3595.7,3594.4,3.2078]
[1762184912857,3.2078,3595.7,3594.6,1.49498354]
[1762184913158,3.2078,3595.7,3595.1,1.49498354]
[1762184913454,3.2078,3595.7,3595.4,1.49498354]
[1762184913649,3.2078,3595.7,3595.2,1.49498354]
[1762184914257,3.2078,3595.7,3595.3,1.49498354]
[1762184914454,3.2078,3595.7,3595.2,1.49498354]
[1762184914753,3.2078,3595.3,3595.0,1.49498354]
[1762184914962,3.2078,3595.7,3594.7,1.49498354]
[1762184915558,3.2078,3595.3,3594.6,1.49498354]
[1762184915749,3.2078,3595.3,3594.4,1.49498354]
[1762184916062,3.2078,3595.3,3594.5,1.49498354]
[1762184916252,3.2078,3594.9,3594.3,1.49498354]
[1762184916560,3.2078,3594.9,3594.2,1.49498354]
[1762184916757,3.2078,3594.5,3594.0,1.49498428]
[1762184916955,3.2078,3594.5,3594.0,7.4e-07]
[1762184917550,3.2078,3594.1,3594.0,7.4e-07]
[1762184917957,10.1638,3594.1,3594.0,7.4e-07]
[1762184918559,10.1638,3594.1,3592.0,1.49498354]
[1762184918560,0.968,3593.0,3592.0,1.49498354]
[1762184918860,0.968,3593.0,3590.6,3.4658766]
[1762184918861,0.968,3591.0,3590.1,1.98517945]
[1762184919159,0.968,3591.0,3588.0,3.2078]
[1762184919160,0.968,3590.0,3588.0,3.2078]
[1762184919360,3.2078,3589.6,3588.4,3.2078]
[1762184919563,3.21011418,3589.6,3589.1,3.57913357]
[1762184919860,3.21011418,3589.6,3588.4,3.20979812]
[1762184920052,3.21011418,3589.6,3588.4,3.19779812]
[1762184920363,3.21011418,3589.6,3587.9,1.98517945]
[1762184920364,0.28104394,3589.5,3588.8,3.2078]
[1762184920757,0.28104394,3589.5,3589.3,3.2078]
[1762184921157,3.48884394,3589.5,3589.3,0.00203836]
[1762184921364,0.28104394,3589.5,3589.4,3.5618717]
[1762184921756,0.00231418,3589.6,3589.4,3.5618717]
[1762184921962,3.2078,3590.7,3589.5,3.2078]
[1762184922159,3.2078,3591.1,3590.5,3.2078]
[1762184922354,3.2078,3591.1,3589.9,3.2078]
[1762184922554,3.2078,3591.1,3590.6,3.26883889]
[1762184922760,3.2078,3590.7,3589.5,0.21331274]
[1762184922965,3.2078,3590.3,3589.3,0.00203836]
[1762184923156,3.70939,3589.5,3589.3,0.00203836]
[1762184923963,3.70939,3589.5,3588.3,3.2078]
[1762184923964,3.70939,3589.5,3587.9,3.2078]
[1762184924159,3.2078,3589.2,3587.9,3.2078]
[1762184924360,0.968,3590.4,3588.4,3.66011366]
[1762184924361,0.26239485,3589.4,3588.4,3.66011366]
[1762184924560,0.968,3590.4,3587.9,0.04849441]
[1762184924561,3.2078,3588.8,3587.9,0.04849441]
[1762184924959,3.2078,3588.4,3587.9,0.0514579]
[1762184925158,1.0339,3588.2,3587.9,0.00296349]
[1762184925361,3.2078,3588.0,3586.6,3.2078]
[1762184925659,3.2078,3586.7,3585.7,3.2078]
[1762184925861,3.2078,3586.7,3584.7,0.02789673]
[1762184925862,1.0339,3586.0,3584.8,3.2078]
[1762184926165,3.2078,3585.7,3585.0,3.59933197]
[1762184926363,3.2078,3585.3,3585.0,3.60188989]
[1762184926560,3.2078,3585.3,3585.0,0.00255792]
[1762184926762,0.80628041,3585.2,3585.1,0.01249368]
[1762184926966,0.80628041,3585.2,3585.1,3.61598338]
[1762184927171,0.00220949,3585.7,3585.1,13.83063385]
[1762184927358,3.07588694,3585.2,3585.1,6.85703385]
[1762184927558,3.07588694,3585.2,3583.7,3.2078]
[1762184927760,3.2078,3584.5,3583.2,3.2078]
[1762184927965,3.2078,3584.1,3583.9,3.66686557]
[1762184928161,0.36818238,3584.4,3583.7,3.2078]
[1762184928460,3.55790515,3585.3,3584.2,3.2078]
[1762184928664,0.56279078,3584.9,3584.2,0.00219427]
[1762184928868,2.92018066,3584.3,3584.2,0.00219427]
[1762184929069,4.08177208,3584.9,3584.2,0.00219427]
[1762184929367,0.00220949,3585.7,3584.6,3.2078]
[1762184929763,0.00220949,3585.7,3585.4,3.2078]
[1762184929764,3.07158124,3585.6,3585.4,3.2078]
[1762184929960,0.00220949,3585.7,3585.6,0.50211]
[1762184929961,9.49e-06,3585.7,3585.6,0.50211]
[1762184930157,3.2078,3587.0,3585.5,6.9728]
[1762184930362,3.2078,3587.0,3585.9,3.2078]
[1762184930559,1.0339,3589.2,3585.6,2.89612352]
[1762184930560,3.2078,3587.8,3586.4,3.2078]
[1762184930764,3.2078,3587.4,3586.0,3.2078]
[1762184930962,3.2078,3588.0,3586.0,3.2078]
[1762184931162,3.2078,3587.6,3586.5,2.46855944]
[1762184931362,0.00257831,3588.0,3586.7,3.2078]
[1762184931562,3.2078,3587.5,3586.4,2.33253857]
[1762184931762,3.2078,3587.5,3585.8,3.2078]
[1762184931763,3.2078,3587.1,3585.8,3.2078]
[1762184931968,0.00257831,3588.0,3585.8,3.2078]
[1762184931969,3.2078,3587.2,3585.8,3.2078]
[1762184932270,3.2078,3587.3,3586.2,3.2078]
[1762184932466,0.00257831,3588.0,3585.9,2.1576107]
[1762184932467,0.00257831,3588.0,3587.0,3.2078]
[1762184932658,0.00257831,3588.0,3587.0,3.21068213]
[1762184933068,0.00257831,3588.0,3587.0,0.00288213]
[1762184933369,3.19526144,3587.4,3585.7,3.2078]
[1762184933571,3.2078,3586.7,3585.7,3.2078]
[1762184933865,3.2078,3585.8,3585.6,3.5445582]
[1762184934063,3.2078,3585.8,3584.5,3.22723859]
[1762184934064,3.2078,3585.8,3584.5,3.2078]
[1762184934271,1.0339,3586.8,3584.5,3.2078]
[1762184934272,3.2078,3585.5,3584.5,3.2078]
[1762184934568,0.50565733,3585.4,3584.6,3.66124944]
[1762184934769,0.50925403,3585.4,3584.6,3.66124944]
[1762184934965,3.2078,3585.1,3585.0,0.01253856]
[1762184935471,3.59661749,3585.1,3582.7,3.2078]
[1762184935765,3.59661749,3585.1,3583.5,3.2078]
[1762184935766,3.2078,3584.6,3583.5,3.2078]
[1762184936163,3.2078,3584.2,3584.0,0.01253856]
[1762184936363,1.0339,3584.4,3584.0,0.01253856]
[1762184936563,0.19420909,3585.0,3584.1,1.90734227]
[1762184936764,1.20608365,3584.3,3584.1,1.90734227]
[1762184937074,3.2078,3584.8,3584.2,0.01253856]
[1762184937270,1.20608365,3584.7,3584.2,0.01253856]
[1762184937467,3.2078,3584.8,3584.2,0.01253856]
[1762184937767,1.36138517,3584.7,3584.2,0.01253856]
[1762184938270,3.19526144,3584.4,3583.5,0.00340779]
[1762184938573,0.11677482,3584.3,3583.7,3.2078]
[1762184938769,3.2078,3584.7,3583.7,3.2078]
[1762184938965,1.24461035,3584.6,3583.8,2.57460305]
[1762184939172,1.24461035,3584.6,3583.8,2.07223305]
[1762184939371,3.2078,3584.3,3583.8,2.07223305]
[1762184939767,3.2078,3583.9,3583.5,0.00340779]
[1762184939969,3.2078,3584.0,3583.5,0.00340779]
[1762184940168,1.51710774,3583.8,3583.5,0.00340779]
[1762184940365,0.07785965,3583.9,3583.5,0.00340779]
[1762184940568,3.2078,3584.0,3583.5,0.00340779]
[1762184940767,4.2417,3584.4,3583.6,6.84393153]
[1762184940968,3.2078,3584.8,3584.0,3.2078]
[1762184941271,0.0035967,3585.4,3585.2,0.50218]
[1762184941472,3.2078,3586.5,3585.3,3.2078]
[1762184941668,3.70974,3587.0,3586.1,3.2078]
[1762184941869,0.07776632,3586.4,3586.0,3.70986]
[1762184942073,1.0339,3588.0,3586.2,3.19007025]
[1762184942074,3.2078,3587.8,3586.2,3.19007025]
[1762184942278,3.2078,3588.2,3587.0,3.2078]
[1762184942479,0.00205442,3588.2,3587.4,3.2078]
[1762184942682,0.00205442,3588.2,3587.1,2.82099537]
[1762184942976,3.19528613,3588.5,3587.6,0.01253856]
[1762184943177,3.2078,3589.1,3588.3,0.50175]
[1762184943383,3.2078,3589.1,3588.2,3.2078]
[1762184943688,3.70949,3588.8,3588.6,0.01671808]
[1762184943979,1.0339,3588.0,3587.1,1.59118149]
[1762184944185,3.2078,3588.2,3587.1,1.59118149]
[1762184944486,0.00358144,3588.8,3587.6,3.2078]
[1762184944780,3.2078,3590.3,3588.6,3.2078]
[1762184945081,4.7629,3591.6,3590.0,3.2078]
[1762184945082,1.53519,3591.6,3590.0,3.2078]
[1762184945387,1.0339,3591.6,3590.8,0.01671808]
[1762184945575,3.2078,3590.9,3590.8,0.01671808]
[1762184945779,3.21051728,3590.9,3588.9,3.2078]
[1762184946079,3.2078,3589.7,3589.6,3.30378069]
[1762184946277,3.2078,3590.3,3589.4,0.03879223]
[1762184946479,3.2078,3589.5,3588.7,0.50168]
[1762184946683,1.0339,3590.6,3589.4,3.2078]
[1762184946876,0.00271728,3590.9,3589.6,3.2078]
[1762184947083,0.00271728,3590.9,3590.4,3.2078]
[1762184947282,0.00271728,3590.9,3589.6,3.2078]
[1762184947481,0.00271728,3590.9,3590.3,3.2078]
[1762184947676,0.00271728,3590.9,3590.1,3.2078]
[1762184947881,0.00271728,3590.9,3589.6,3.26495928]
[1762184948176,3.2078,3590.6,3589.5,3.2078]
[1762184948377,3.2078,3590.2,3589.7,3.28438538]
[1762184948580,3.2078,3589.8,3589.6,0.01939531]
[1762184948893,3.70934,3589.8,3588.6,3.2078]
[1762184949183,1.0339,3590.6,3588.4,3.70952]
[1762184949184,3.2078,3589.5,3588.4,3.70952]
[1762184949489,3.2078,3589.2,3588.6,0.10134304]
[1762184949686,3.2078,3588.8,3588.6,0.10134304]
[1762184949986,3.2078,3588.8,3588.6,0.00196539]
[1762184950190,1.0339,3589.3,3588.6,0.00196539]
[1762184950483,3.2078,3589.9,3588.7,0.3224305]
[1762184950685,3.2078,3589.1,3588.6,0.00196539]
[1762184951079,3.2078,3589.1,3588.7,3.56346073]
[1762184951382,3.2078,3589.6,3589.0,0.50164]
[1762184951581,3.2078,3589.7,3589.0,0.50164]
[1762184951880,3.2078,3589.8,3589.3,0.0125222]
[1762184952285,3.70935,3589.8,3589.5,0.01669354]
[1762184952481,3.2078,3589.8,3589.5,0.01669354]
[1762184952681,1.0339,3589.3,3588.6,0.00196539]
[1762184952881,3.2078,3589.0,3588.6,0.00196539]
[1762184953580,0.50169,3588.8,3587.0,3.2078]
[1762184953785,1.0339,3589.3,3587.0,3.2078]
[1762184953786,3.2078,3588.3,3587.0,3.2078]
[1762184954089,3.2078,3588.3,3587.7,3.59655785]
[1762184954387,3.2078,3587.8,3585.8,3.2078]
[1762184954589,3.2078,3587.2,3586.2,3.70984]
[1762184954786,3.2078,3587.2,3586.4,3.61079366]
[1762184955084,3.2078,3586.8,3585.8,0.00318098]
[1762184955290,3.2078,3586.3,3585.8,0.00318098]
[1762184955490,3.2078,3586.3,3585.9,3.63142229]
[1762184955681,0.1166381,3586.2,3585.8,0.00318098]
[1762184955879,3.2078,3585.9,3584.5,3.2078]
[1762184956087,3.2078,3585.9,3584.9,3.2078]
[1762184956287,1.0768,3585.4,3584.5,6.83922229]
[1762184956484,1.0768,3585.4,3582.2,2.47191761]
[1762184956485,3.2078,3585.0,3584.2,3.2078]
[1762184956788,0.93346699,3585.3,3584.6,3.57982664]
[1762184956984,0.00245306,3585.0,3584.6,3.57982664]
[1762184957187,0.00245306,3585.0,3584.7,0.50226]
[1762184957188,0.31117594,3584.9,3584.7,0.50226]
[1762184957489,0.00245306,3585.0,3584.9,0.50223]
[1762184957490,3.56e-06,3585.0,3584.9,0.50223]
[1762184957690,3.2078,3587.4,3586.4,0.50201]
[1762184957987,3.2078,3587.4,3586.5,3.2078]
[1762184958290,3.2078,3587.8,3586.5,3.2078]
[1762184958485,3.2078,3587.3,3586.0,3.2078]
[1762184958786,0.00255412,3587.3,3587.2,3.2078]
[1762184958979,3.2078,3589.1,3588.1,0.50177]
[1762184959180,1.0339,3589.3,3588.6,3.2078]
[1762184959483,3.2078,3589.9,3589.0,3.2078]
[1762184959993,0.00239762,3589.9,3589.4,0.0125259]
[1762184960384,0.00239762,3589.9,3589.7,0.50155]
[1762184960791,0.00239762,3589.9,3589.8,6.9848765]
[1762184960984,3.2078,3591.2,3589.8,10.061698]
[1762184961180,1.0768,3591.6,3589.8,10.061698]
[1762184961181,3.2078,3591.1,3589.8,3.0768215]
[1762184961386,1.0768,3591.6,3590.5,0.03795013]
[1762184961387,3.2078,3591.5,3590.5,0.03795013]
[1762184961581,1.0768,3591.6,3590.5,0.03795013]
[1762184961582,3.2078,3591.4,3590.5,0.03795013]
[1762184961787,1.0768,3591.6,3590.6,3.2078]
[1762184961983,0.00229216,3591.6,3591.0,3.2078]
[1762184962286,0.00229216,3591.6,3589.8,1.2558899]
[1762184962287,3.2078,3591.1,3589.8,0.0020399]
[1762184962588,3.2078,3589.9,3587.2,3.2078]
[1762184962787,3.2078,3588.6,3587.2,3.2078]
[1762184962991,3.2078,3588.6,3587.8,3.70962]
[1762184963488,0.00206063,3588.6,3588.3,0.50175]
[1762184963684,0.00206063,3588.6,3587.9,0.29001746]
[1762184963887,3.2078,3588.5,3588.4,0.04617266]
[1762184964088,3.2078,3588.5,3587.8,0.00334942]
[1762184964490,3.2078,3588.5,3588.0,3.62866475]
[1762184964989,0.00206063,3588.6,3588.0,3.62866475]
[1762184964990,3.2078,3588.1,3588.0,3.62866475]
[1762184965292,3.2078,3588.1,3586.3,8.81779765]
[1762184965293,1.0768,3588.0,3586.3,8.81779765]
[1762184965486,3.2078,3587.6,3586.4,0.50202]
[1762184965693,3.2078,3587.7,3586.9,3.2078]
[1762184965888,3.2078,3587.7,3586.5,3.7098]
[1762184966090,0.00206063,3588.6,3586.5,3.7098]
[1762184966091,3.2078,3587.2,3587.0,0.58992739]
[1762184966287,3.2078,3587.2,3586.6,0.25253275]
[1762184966492,3.2078,3587.2,3586.5,0.00258327]
[1762184966797,0.00206063,3588.6,3586.5,3.21038327]
[1762184966798,3.2078,3587.1,3586.5,3.21038327]
[1762184966991,3.2078,3587.1,3586.6,3.54780062]
[1762184967491,3.2078,3586.7,3586.6,3.54780062]
[1762184967696,3.70979,3586.7,3586.5,0.00258327]
[1762184967994,3.70979,3586.7,3586.3,8.81779765]
[1762184967995,0.50203,3586.4,3586.3,1.67576484]
[1762184968989,4.2593,3586.7,3586.3,0.00353932]
[1762184968990,3.2078,3586.7,3586.3,0.00353932]
[1762184969194,3.2078,3586.7,3586.5,0.01254987]
[1762184969603,3.7098,3586.7,3586.5,0.01254987]
[1762184969790,4.76129,3586.7,3586.6,0.01673316]
[1762184970102,0.50203,3586.5,3586.3,0.00353932]
[1762184970295,4.2593,3586.7,3586.3,0.00353932]
[1762184970493,3.2078,3586.7,3586.3,0.00353932]
[1762184971188,0.50203,3586.5,3586.3,0.00353932]
[1762184971591,6.9704,3586.6,3584.7,0.02789673]
[1762184971792,1.0515,3586.8,3584.8,3.2078]
[1762184971793,3.2078,3585.5,3584.8,3.2078]
[1762184971987,3.2078,3586.0,3585.2,3.2078]
[1762184972199,3.2078,3587.1,3585.9,3.2078]
[1762184972399,1.25414,3589.2,3585.6,13.09198]
[1762184972400,3.2078,3587.9,3586.6,3.2078]
[1762184972593,3.21029365,3587.9,3586.6,0.00221293]
[1762184972793,3.2078,3587.5,3586.6,0.00221293]
[1762184972993,3.2078,3587.5,3586.7,0.96383466]
[1762184973199,3.2078,3587.1,3586.7,0.96383466]
[1762184973395,0.00249365,3587.9,3586.7,0.96383466]
[1762184973599,3.2078,3587.2,3586.6,0.00221293]
[1762184973998,3.2078,3587.6,3586.6,0.00221293]
[1762184974199,3.2078,3587.6,3587.3,0.5019]
[1762184974398,0.00249365,3587.9,3587.5,0.50188]
[1762184974606,0.00249365,3587.9,3587.4,4.0194695]
[1762184974806,0.00249365,3587.9,3587.7,0.50184]
[1762184975098,0.50432365,3587.9,3587.5,0.83109239]
[1762184975303,0.00249365,3587.9,3587.8,0.03886635]
[1762184975498,0.00249365,3587.9,3587.7,3.38485426]
[1762184975703,3.2078,3588.5,3587.5,7.81851474]
[1762184976004,3.2078,3588.5,3587.9,0.50182]
[1762184976192,3.2078,3588.5,3587.8,3.36545519]
[1762184976193,3.2078,3588.5,3588.2,0.50179]
[1762184976397,3.2078,3588.5,3588.0,3.26836239]
[1762184976601,0.0028988,3588.5,3588.3,0.01475753]
[1762184976810,1.0515,3588.0,3587.7,0.11650324]
[1762184976999,1.03861913,3588.0,3587.0,3.4237271]
[1762184977200,3.2078,3587.1,3586.0,3.2078]
[1762184977599,3.2078,3586.7,3585.6,0.5382]
[1762184977805,3.2078,3586.7,3585.6,0.50214]
[1762184978005,3.2078,3586.7,3585.7,0.50213]
[1762184978206,3.2078,3586.7,3585.8,0.50212]
[1762184978408,3.2078,3586.7,3585.4,3.2078]
[1762184978712,3.2078,3586.7,3586.1,0.50208]
[1762184979008,3.2078,3586.7,3586.6,3.56414101]
[1762184979211,3.2078,3586.7,3586.6,0.00221293]
[1762184979803,3.2078,3586.7,3585.0,3.2078]
[1762184980109,3.2078,3585.8,3585.5,3.65878723]
[1762184980507,3.2078,3585.8,3585.0,3.2078]
[1762184980707,3.2078,3585.4,3585.2,3.65173362]
[1762184981009,0.27225424,3585.3,3585.2,0.00224502]
[1762184981798,0.27225424,3585.3,3584.7,0.02789673]
[1762184982005,3.2078,3584.8,3584.7,0.02789673]
[1762184982304,3.2078,3584.8,3583.2,23.102]
[1762184982305,3.75228028,3584.8,3583.2,23.102]
[1762184982498,3.75228028,3584.8,3582.5,3.2078]
[1762184982499,3.2078,3583.5,3582.5,3.2078]
[1762184982699,3.2078,3583.5,3582.0,3.06147945]
[1762184982700,3.2078,3583.5,3583.3,3.56768035]
[1762184982907,1.63474124,3583.4,3583.3,0.00358023]
[1762184983605,3.2078,3583.5,3583.3,0.00358023]
[1762184983911,1.90661765,3583.4,3583.3,0.00358023]
[1762184984305,1.90661765,3583.4,3583.3,1.55178537]
[1762184984506,1.90661765,3583.4,3581.2,3.2078]
[1762184984804,3.2078,3582.4,3582.0,3.5719887]
[1762184985004,3.2078,3582.4,3582.0,4.6041887]
[1762184985210,3.2078,3582.4,3582.2,0.50262]
[1762184985404,3.2078,3582.4,3581.7,1.25672]
[1762184985405,3.2078,3582.4,3582.1,0.50129738]
[1762184985605,1.90661765,3582.3,3582.2,0.01258836]
[1762184985802,1.90661765,3582.3,3582.2,0.01678448]
[1762184986114,3.2078,3583.4,3582.2,6.99518448]
[1762184986310,3.2078,3583.4,3582.2,0.51808186]
[1762184986504,0.07790095,3583.3,3583.1,0.50249]
[1762184986806,3.2078,3583.4,3582.8,0.0209806]
[1762184987006,3.18262328,3582.9,3582.4,3.2078]
[1762184987202,0.0027639,3582.9,3582.4,3.2078]
[1762184987406,0.0027639,3582.9,3582.1,0.00284588]
[1762184987407,0.0027639,3582.9,3582.5,3.37721458]
[1762184987616,0.0027639,3582.9,3582.6,3.2078]
[1762184987910,0.0027639,3582.9,3582.2,6.9784]
[1762184987911,0.0027639,3582.9,3582.7,3.27982616]
[1762184988302,0.0027639,3582.9,3582.7,6.9776]
[1762184988506,0.0027639,3582.9,3582.8,10.66258046]
[1762184988706,3.2078,3583.6,3583.1,0.50249]
[1762184989116,3.2078,3583.6,3582.7,3.2078]
[1762184989117,3.2078,3584.0,3583.2,0.52082127]
[1762184989504,3.2078,3585.0,3583.8,3.2078]
[1762184989704,0.003559,3585.0,3584.7,0.50226]
[1762184989910,0.003559,3585.0,3584.7,0.00196767]
[1762184990213,3.2078,3584.8,3584.7,0.00196767]
[1762184990610,3.2078,3584.9,3584.7,0.04087578]
[1762184990811,0.81673452,3584.8,3583.3,0.50246]
[1762184991011,3.2078,3583.7,3583.1,3.2078]
[1762184991214,3.2078,3583.7,3583.4,3.37236769]
[1762184991517,3.2078,3584.1,3583.5,0.50244]
[1762184991713,3.2078,3584.5,3583.9,0.50238]
[1762184991913,3.2078,3584.5,3583.9,0.00263245]
[1762184992217,1.43942062,3584.7,3584.4,0.5023]
[1762184992418,0.003559,3585.0,3584.0,6.48284014]
[1762184992804,3.2078,3584.9,3584.0,3.27504014]
[1762184993311,3.2078,3584.9,3584.1,0.50236]
[1762184993515,3.2078,3584.9,3584.0,6.48284014]